lending/lending_fUSD_20251124
["ID","MTS","AMOUNT","RATE_DAILY","PERIOD"]
[394799999,1763965841113,-569.93718475,0.00036708,8]
[394800000,1763965841123,-500.0,0.00036708,8]
[394800001,1763965841132,-380.43405604,0.00036708,8]
[394800002,1763965841144,-506.36327147,0.00036708,8]
[394800003,1763965841159,-539.72126625,0.00036708,8]
[394800004,1763965841168,-500.0,0.00036708,8]
[394800005,1763965841177,-500.0,0.00036708,8]
[394800006,1763965841186,-500.0,0.00036708,8]
[394800007,1763965841195,-873.89781742,0.00036708,4]
[394800008,1763965841205,-271.3608691,0.00036712,8]
[394800009,1763965841214,-177.6,0.00036712,2]
[394800010,1763965841223,-150.47,0.00036712,2]
[394800011,1763965841232,-500.0,0.00036715,2]
[394800012,1763965841241,-230.31458143,0.00036715,15]
[394800013,1763965841251,-501.86314705,0.00036715,15]
[394800014,1763965841260,-269.99002876,0.00036715,15]
[394800015,1763965841270,-302.01927769,0.00036715,15]
[394800016,1763965841280,-500.0,0.00036715,7]
[394800017,1763965841289,-500.0,0.00036715,15]
[394800018,1763965841298,-500.0,0.00036715,2]
[394800019,1763965841307,-500.0,0.00036715,15]
[394800020,1763965841316,-500.0,0.00036715,15]
[394800021,1763965841325,-500.0,0.00036715,15]
[394800022,1763965841334,-500.0,0.00036715,15]
[394800023,1763965841343,-500.0,0.00036715,2]
[394800024,1763965841353,-500.0,0.00036715,7]
[394800025,1763965841362,-500.0,0.00036715,15]
[394800026,1763965841371,-206.79501577,0.00036715,15]
[394800027,1763965841381,-500.0,0.00036715,2]
[394800028,1763965841391,-500.0,0.00036715,15]
[394800029,1763965841400,-500.0,0.00036715,15]
[394800030,1763965841409,-500.0,0.00036715,2]
[394800031,1763965841418,-442.06960664,0.00036715,7]
[394800032,1763965841428,-500.0,0.00036715,15]
[394800033,1763965841437,-500.0,0.00036715,15]
[394800034,1763965841446,-500.0,0.00036715,15]
[394800035,1763965841456,-500.0,0.00036715,2]
[394800036,1763965841465,-500.0,0.00036715,15]
[394800037,1763965841475,-500.0,0.00036715,15]
[394800038,1763965841484,-422.20375383,0.00036715,15]
[394800039,1763965841494,-500.0,0.00036715,2]
[394800040,1763965841503,-592.90240675,0.00036715,15]
[394800041,1763965841513,-500.0,0.00036715,15]
[394800042,1763965841523,-500.0,0.00036715,15]
[394800043,1763965841532,-289.57586417,0.00036715,2]
[394800044,1763965841541,-500.0,0.00036715,15]
[394800045,1763965841551,-500.0,0.00036715,15]
[394800046,1763965841560,-500.0,0.00036715,15]
[394800047,1763965841569,-500.0,0.00036715,15]
[394800048,1763965841578,-500.0,0.00036715,15]
[394800049,1763965841587,-500.0,0.00036715,15]
[394800050,1763965841596,-500.0,0.00036715,15]
[394800051,1763965841607,-500.0,0.00036715,15]
[394800052,1763965841616,-500.0,0.00036715,15]
[394800053,1763965841626,-500.0,0.00036715,15]
[394800054,1763965841635,-500.0,0.00036715,15]
[394800055,1763965841644,-500.0,0.00036715,15]
[394800056,1763965841653,-500.0,0.00036715,15]
[394800057,1763965841663,-500.0,0.00036715,15]
[394800058,1763965841673,-500.0,0.00036715,15]
[394800059,1763965841682,-500.0,0.00036715,15]
[394800060,1763965841692,-500.0,0.00036715,15]
[394800061,1763965841701,-500.0,0.00036715,15]
[394800062,1763965841710,-151.0,0.00036716,31]
[394800063,1763965841720,-327.307542,0.00036716,31]
[394800064,1763965841729,-327.307542,0.00036716,31]
[394800065,1763965841738,-327.307542,0.00036716,31]
[394800066,1763965841747,-518.45119057,0.00036716,8]
[394800067,1763965841756,-151.0,0.00036716,31]
[394800068,1763965841765,-151.0,0.00036716,31]
[394800069,1763965841775,-327.307542,0.00036716,31]
[394800070,1763965841788,-151.0,0.00036716,31]
[394800071,1763965841797,-151.0,0.00036716,31]
[394800072,1763965841807,-500.0,0.00036716,8]
[394800073,1763965841816,-151.0,0.00036716,31]
[394800074,1763965841826,-500.0,0.00036716,8]
[394800075,1763965841835,-369.647689,0.00036716,31]
[394800076,1763965841844,-155.601761,0.00036716,31]
[394800077,1763965841854,-369.647689,0.00036716,31]
[394800078,1763965841863,-500.0,0.00036716,8]
[394800079,1763965841872,-500.0,0.00036716,8]
[394800080,1763965841881,-151.0,0.00036716,31]
[394800081,1763965841891,-151.0,0.00036716,31]
[394800082,1763965841900,-500.0,0.00036716,8]
[394800083,1763965841910,-151.0,0.00036716,31]
[394800084,1763965841919,-300.088969,0.00036716,31]
[394800085,1763965841928,-500.0,0.00036716,8]
[394800086,1763965841937,-500.0,0.00036716,8]
[394800087,1763965841946,-151.0,0.00036716,15]
[394800088,1763965841956,-500.0,0.00036716,8]
[394800089,1763965841968,-500.0,0.00036716,8]
[394800090,1763965841978,-151.0,0.00036716,31]
[394800091,1763965841986,-151.0,0.00036716,30]
[394800092,1763965841996,-151.0,0.00036716,30]
[394800093,1763965842006,-500.0,0.00036716,8]
[394800094,1763965842015,-281.085269,0.00036716,30]
[394800095,1763965842024,-500.0,0.00036716,8]
[394800096,1763965842033,-500.0,0.00036716,8]
[394800097,1763965842045,-500.0,0.00036716,8]
[394800098,1763965842054,-500.0,0.00036716,8]
[394800099,1763965842063,-500.0,0.00036716,8]
[394800100,1763965842072,-151.0,0.00036716,31]
[394800101,1763965842081,-151.0,0.00036716,31]
[394800102,1763965842091,-151.0,0.00036716,31]
[394800103,1763965842100,-153.944528,0.00036716,31]
[394800104,1763965842109,-172.188611,0.00036716,31]
[394800105,1763965842119,-973.33,0.00036716,8]
[394800106,1763965842128,-151.0,0.00036716,31]
[394800107,1763965842137,-172.188611,0.00036716,31]
[394800108,1763965842147,-153.820824,0.00036716,31]
[394800109,1763965842156,-151.0,0.00036716,31]
[394800110,1763965842165,-172.188611,0.00036716,31]
[394800111,1763965842175,-298.244619,0.00036716,31]
[394800112,1763965842184,-172.188611,0.00036716,31]
[394800113,1763965842194,-151.0,0.00036716,31]
[394800114,1763965842202,-212.491741,0.00036716,31]
[394800115,1763965842212,-585.36917948,0.00036716,8]
[394800116,1763965842221,-151.0,0.00036716,31]
[394800117,1763965842230,-212.491741,0.00036716,31]
[394800118,1763965842239,-151.0,0.00036716,31]
[394800119,1763965842248,-212.491741,0.00036716,31]
[394800120,1763965842258,-151.0,0.00036716,31]
[394800121,1763965842267,-151.0,0.00036716,31]
[394800122,1763965842276,-212.491741,0.00036716,31]
[394800123,1763965842285,-151.0,0.00036716,31]
[394800124,1763965842295,-500.0,0.00036716,8]
[394800125,1763965842304,-151.0,0.00036716,31]
[394800126,1763965842314,-151.0,0.00036716,31]
[394800127,1763965842323,-178.005344,0.00036716,31]
[394800128,1763965842332,-500.0,0.00036716,8]
[394800129,1763965842341,-223.378962,0.00036716,31]
[394800130,1763965842351,-153.053772,0.00036716,31]
[394800131,1763965842360,-500.0,0.00036716,8]
[394800132,1763965842369,-500.0,0.00036716,8]
[394800133,1763965842379,-500.0,0.00036716,8]
[394800134,1763965842388,-500.0,0.00036716,8]
[394800135,1763965842397,-500.0,0.00036716,8]
[394800136,1763965842406,-500.0,0.00036716,8]
[394800137,1763965842416,-151.0,0.00036716,31]
[394800138,1763965842425,-151.0,0.00036716,31]
[394800139,1763965842434,-151.0,0.00036716,31]
[394800140,1763965842443,-151.0,0.00036716,31]
[394800141,1763965842452,-500.0,0.00036716,8]
[394800142,1763965842461,-500.0,0.00036716,8]
[394800143,1763965842470,-151.0,0.00036716,31]
[394800144,1763965842480,-151.0,0.00036716,31]
[394800145,1763965842489,-151.0,0.00036716,31]
[394800146,1763965842499,-151.0,0.00036716,31]
[394800147,1763965842508,-151.0,0.00036716,31]
[394800148,1763965842518,-151.0,0.00036716,31]
[394800149,1763965842527,-151.0,0.00036716,31]
[394800150,1763965842536,-151.0,0.00036716,31]
[394800151,1763965842546,-151.0,0.00036716,31]
[394800152,1763965842555,-500.0,0.00036716,8]
[394800153,1763965842564,-151.0,0.00036716,31]
[394800154,1763965842573,-151.0,0.00036716,31]
[394800155,1763965842583,-151.0,0.00036716,31]
[394800156,1763965842593,-151.0,0.00036716,31]
[394800157,1763965842602,-500.0,0.00036717,8]
[394800158,1763965842611,-190.32955459,0.00036717,8]
[394800159,1763965842620,-354.8935304,0.00036717,8]
[394800160,1763965842630,-500.0,0.00036717,8]
[394800161,1763965842639,-501.31665986,0.00036717,8]
[394800162,1763965842648,-500.0,0.00036717,8]
[394800163,1763965842657,-500.0,0.00036717,8]
[394800164,1763965842667,-500.0,0.00036717,8]
[394800165,1763965842677,-422.14132612,0.00036717,8]
[394800166,1763965842686,-500.0,0.00036717,8]
[394800167,1763965842695,-500.0,0.00036717,8]
[394800168,1763965842704,-500.0,0.00036717,8]
[394800169,1763965842714,-500.0,0.00036717,8]
[394800170,1763965842723,-500.0,0.00036717,8]
[394800171,1763965842734,-514.32732617,0.00036717,8]
[394800172,1763965842743,-513.93946918,0.00036717,8]
[394800173,1763965842752,-524.18770771,0.00036717,8]
[394800174,1763965842762,-416.15793843,0.00036717,8]
[394800175,1763965842771,-400.0,0.00036717,8]
[394800176,1763965842780,-546.01862097,0.00036717,8]
[394800177,1763965842790,-500.0,0.00036717,8]
[394800178,1763965842799,-500.0,0.00036717,8]
[394800179,1763965842809,-507.30143051,0.00036717,8]
[394800180,1763965842818,-414.65964363,0.00036717,8]
[394800181,1763965842828,-500.0,0.00036717,8]
[394800182,1763965842838,-512.3659756,0.00036717,8]
[394800183,1763965842859,-502.75891138,0.00036717,8]
[394800184,1763965842873,-563.66117923,0.00036717,8]
[394800185,1763965842884,-500.0,0.00036717,8]
[394800186,1763965842893,-506.79426993,0.00036717,8]
[394800187,1763965842902,-402.69631385,0.00036717,8]
[394800188,1763965842912,-500.0,0.00036717,8]
[394800189,1763965842921,-500.0,0.00036717,8]
[394800190,1763965842931,-512.48216059,0.00036717,8]
[394800191,1763965842941,-155.39027018,0.00036717,8]
[394800192,1763965842950,-503.24499834,0.00036717,8]
[394800193,1763965842959,-561.36143459,0.00036717,8]
[394800194,1763965842973,-414.80493348,0.00036717,8]
[394800195,1763965842982,-559.33783232,0.00036717,8]
[394800196,1763965842992,-500.0,0.00036717,8]
[394800197,1763965843002,-502.13560455,0.00036717,8]
[394800198,1763965843013,-508.39448913,0.00036717,8]
[394800199,1763965843022,-502.45643518,0.00036717,8]
[394800200,1763965843031,-530.05286,0.00036717,8]
[394800201,1763965843040,-413.24652967,0.00036717,8]
[394800202,1763965843051,-502.3275659,0.00036717,8]
[394800203,1763965843060,-500.0,0.00036717,8]
[394800204,1763965843070,-519.6910821,0.00036717,8]
[394800205,1763965843079,-647.66334718,0.00036717,8]
[394800206,1763965843088,-460.58494429,0.00036717,8]
[394800207,1763965843097,-500.0,0.00036717,8]
[394800208,1763965843107,-556.34393294,0.00036717,8]
[394800209,1763965843116,-1000.0,0.00036717,8]
[394800210,1763965843126,-440.42513483,0.00036717,8]
[394800211,1763965843134,-500.0,0.00036717,8]
[394800212,1763965843144,-575.69876559,0.00036717,8]
[394800213,1763965843153,-573.76829835,0.00036717,8]
[394800214,1763965843162,-213.4881535,0.00036717,8]
[394800215,1763965843171,-150.0,0.00036717,15]
[394800216,1763965843180,-500.0,0.00036717,8]
[394800217,1763965843189,-523.4731181,0.00036717,8]
[394800218,1763965843198,-500.0,0.00036717,8]
[394800219,1763965843208,-500.0,0.00036717,8]
[394800220,1763965843217,-500.0,0.00036717,8]
[394800221,1763965843227,-500.0,0.00036717,8]
[394800222,1763965843237,-500.0,0.00036717,8]
[394800223,1763965843245,-502.6300261,0.00036717,8]
[394800224,1763965843254,-500.0,0.00036717,8]
[394800225,1763965843263,-500.0,0.00036717,8]
[394800226,1763965843273,-500.0,0.00036717,8]
[394800227,1763965843283,-484.5020846,0.00036717,8]
[394800228,1763965843292,-500.0,0.00036717,8]
[394800229,1763965843301,-500.0,0.00036717,8]
[394800230,1763965843311,-505.91489168,0.00036717,8]
[394800231,1763965843320,-515.96097685,0.00036717,8]
[394800232,1763965843329,-501.79225407,0.00036717,8]
[394800233,1763965843339,-543.30783253,0.00036717,8]
[394800234,1763965843348,-423.08975585,0.00036717,8]
[394800235,1763965843359,-500.0,0.00036717,8]
[394800236,1763965843368,-500.0,0.00036717,8]
[394800237,1763965843377,-502.09762822,0.00036717,8]
[394800238,1763965843386,-544.64449008,0.00036717,8]
[394800239,1763965843396,-500.0,0.00036717,8]
[394800240,1763965843405,-500.0,0.00036717,8]
[394800241,1763965843414,-500.0,0.00036717,8]
[394800242,1763965843423,-501.49089174,0.00036717,8]
[394800243,1763965843433,-500.0,0.00036717,8]
[394800244,1763965843442,-502.51845394,0.00036717,8]
[394800245,1763965843452,-500.0,0.00036717,8]
[394800246,1763965843461,-538.91810955,0.00036717,8]
[394800247,1763965843470,-500.0,0.00036717,8]
[394800248,1763965843480,-500.0,0.00036717,8]
[394800249,1763965843489,-500.0,0.00036717,8]
[394800250,1763965843499,-503.54215736,0.00036717,8]
[394800251,1763965843509,-500.0,0.00036717,8]
[394800252,1763965843518,-502.62735202,0.00036717,8]
[394800253,1763965843528,-500.72333272,0.00036717,8]
[394800254,1763965843537,-500.0,0.00036717,8]
[394800255,1763965843547,-500.0,0.00036717,8]
[394800256,1763965843556,-500.0,0.00036717,8]
[394800257,1763965843565,-481.43766486,0.00036717,8]
[394800258,1763965843575,-512.04516124,0.00036717,8]
[394800259,1763965843584,-535.4961932,0.00036717,8]
[394800265,1763965843750,-500.0,0.00036717,8]
[394800266,1763965843760,-606.87572638,0.00036717,8]
[394800267,1763965843769,-500.0,0.00036717,8]
[394800268,1763965843779,-500.0,0.00036717,8]
[394800269,1763965843789,-500.0,0.00036717,8]
[394800270,1763965843798,-500.0,0.00036717,8]
[394800271,1763965843808,-500.0,0.00036717,8]
[394800272,1763965843818,-1000.0,0.00036717,8]
[394800273,1763965843828,-500.0,0.00036717,8]
[394800274,1763965843837,-500.0,0.00036717,8]
[394800275,1763965843846,-500.0,0.00036717,8]
[394800276,1763965843856,-500.0,0.00036717,8]
[394800277,1763965843866,-500.0,0.00036717,8]
[394800278,1763965843875,-500.0,0.00036717,8]
[394800279,1763965843885,-500.0,0.00036717,8]
[394800280,1763965843895,-520.14408592,0.00036717,8]
[394800281,1763965843905,-500.0,0.00036717,8]
[394800282,1763965843915,-500.0,0.00036717,8]
[394800283,1763965843925,-500.0,0.00036717,8]
[394800284,1763965843935,-500.0,0.00036717,8]
[394800285,1763965843945,-500.0,0.00036717,8]
[394800286,1763965843954,-500.50564348,0.00036717,8]
[394800287,1763965843964,-500.0,0.00036717,8]
[394800288,1763965843977,-500.0,0.00036717,8]
[394800289,1763965843987,-500.0,0.00036717,8]
[394800290,1763965843996,-500.0,0.00036717,8]
[394800291,1763965844007,-500.0,0.00036717,8]
[394800292,1763965844018,-500.0,0.00036717,8]
[394800293,1763965844027,-500.0,0.00036717,8]
[394800294,1763965844038,-500.0,0.00036717,8]
[394800295,1763965844048,-500.0,0.00036717,8]
[394800296,1763965844057,-500.0,0.00036717,8]
[394800297,1763965844066,-500.0,0.00036717,8]
[394800298,1763965844076,-534.05983985,0.00036717,8]
[394800299,1763965844086,-538.19139482,0.00036717,8]
[394800300,1763965844095,-500.0,0.00036717,8]
[394800301,1763965844105,-500.0,0.00036717,8]
[394800302,1763965844115,-400.58357398,0.00036717,8]
[394800303,1763965844124,-500.0,0.00036717,8]
[394800304,1763965844134,-501.53301196,0.00036717,8]
[394800305,1763965844144,-501.37051141,0.00036717,8]
[394800306,1763965844154,-542.74963001,0.00036717,8]
[394800307,1763965844163,-500.0,0.00036717,8]
[394800308,1763965844172,-500.0,0.00036717,8]
[394800309,1763965844182,-572.77509088,0.00036717,8]
[394800310,1763965844192,-500.0,0.00036717,8]
[394800311,1763965844201,-500.0,0.00036717,8]
[394800312,1763965844210,-500.4562418,0.00036717,3]
[394800313,1763965844219,-500.0,0.00036717,8]
[394800314,1763965844229,-272.89602152,0.00036717,8]
[394800315,1763965844239,-500.0,0.00036717,8]
[394800316,1763965844248,-500.0,0.00036717,8]
[394800317,1763965844258,-500.0,0.00036717,2]
[394800318,1763965844267,-501.42085807,0.00036717,8]
[394800319,1763965844276,-511.04335723,0.00036717,8]
[394800320,1763965844286,-204.55105365,0.00036717,8]
[394800321,1763965844295,-500.0,0.00036717,8]
[394800322,1763965844305,-500.0,0.00036717,8]
[394800323,1763965844314,-500.0,0.00036717,8]
[394800324,1763965844323,-268.84382324,0.00036717,8]
[394800325,1763965844332,-500.0,0.00036717,8]
[394800326,1763965844342,-546.74045324,0.00036717,8]
[394800327,1763965844351,-500.0,0.00036717,8]
[394800328,1763965844361,-504.93307159,0.00036717,8]
[394800329,1763965844370,-500.0,0.00036717,8]
[394800330,1763965844380,-501.19942348,0.00036717,8]
[394800331,1763965844389,-1721.82,0.00036717,8]
[394800332,1763965844399,-500.0,0.00036717,8]
[394800333,1763965844408,-500.0,0.00036717,8]
[394800334,1763965844417,-525.11266066,0.00036717,8]
[394800335,1763965844427,-436.31466962,0.00036717,8]
[394800336,1763965844437,-500.0,0.00036717,8]
[394800337,1763965844447,-500.0,0.00036717,8]
[394800338,1763965844456,-500.0,0.00036717,8]
[394800339,1763965844466,-500.0,0.00036717,8]
[394800340,1763965844475,-500.0,0.00036717,8]
[394800341,1763965844484,-562.98217968,0.00036717,8]
[394800342,1763965844494,-584.19318582,0.00036717,8]
[394800343,1763965844503,-500.0,0.00036717,8]
[394800344,1763965844513,-519.67921141,0.00036717,8]
[394800345,1763965844522,-514.68354024,0.00036717,8]
[394800346,1763965844531,-500.0,0.00036717,8]
[394800347,1763965844540,-1000.0,0.00036717,3]
[394800348,1763965844550,-500.0,0.00036717,8]
[394800349,1763965844560,-500.0,0.00036717,8]
[394800350,1763965844572,-500.0,0.00036717,8]
[394800351,1763965844581,-500.0,0.00036717,8]
[394800352,1763965844591,-500.0,0.00036717,8]
[394800353,1763965844600,-500.0,0.00036717,8]
[394800354,1763965844610,-500.0,0.00036717,8]
[394800355,1763965844620,-500.0,0.00036717,8]
[394800356,1763965844629,-500.0,0.00036717,8]
[394800357,1763965844639,-619.40800712,0.00036717,8]
[394800358,1763965844648,-503.03614785,0.00036717,8]
[394800359,1763965844657,-500.0,0.00036717,8]
[394800360,1763965844667,-502.0831892,0.00036717,8]
[394800361,1763965844679,-500.0,0.00036717,8]
[394800362,1763965844688,-500.0,0.00036717,8]
[394800363,1763965844698,-516.16614246,0.00036717,8]
[394800364,1763965844707,-500.0,0.00036717,8]
[394800365,1763965844716,-500.0,0.00036717,8]
[394800366,1763965844725,-500.0,0.00036717,8]
[394800367,1763965844734,-500.0,0.00036717,8]
[394800368,1763965844743,-500.0,0.00036717,8]
[394800369,1763965844752,-500.0,0.00036717,8]
[394800370,1763965844763,-500.0,0.00036717,8]
[394800371,1763965844772,-500.0,0.00036717,8]
[394800372,1763965844781,-500.0,0.00036717,8]
[394800373,1763965844791,-500.0,0.00036717,8]
[394800374,1763965844800,-535.94408052,0.00036717,8]
[394800375,1763965844810,-500.0,0.00036717,2]
[394800376,1763965844819,-522.67303924,0.00036717,8]
[394800377,1763965844829,-500.0,0.00036717,8]
[394800378,1763965844838,-504.9562193,0.00036717,8]
[394800379,1763965844847,-506.03125479,0.00036717,8]
[394800380,1763965844857,-500.0,0.00036717,8]
[394800381,1763965844870,-500.0,0.00036717,8]
[394800382,1763965844881,-500.0,0.00036717,8]
[394800383,1763965844890,-500.0,0.00036717,8]
[394800384,1763965844901,-500.0,0.00036717,8]
[394800385,1763965844910,-500.0,0.00036717,8]
[394800386,1763965844919,-500.0,0.00036717,8]
[394800387,1763965844929,-500.0,0.00036717,8]
[394800388,1763965844938,-154.47390351,0.00036717,8]
[394800389,1763965844948,-589.93897879,0.00036717,8]
[394800390,1763965844958,-500.0,0.00036717,8]
[394800391,1763965844971,-516.07016131,0.00036717,8]
[394800392,1763965844981,-500.0,0.00036717,8]
[394800393,1763965844990,-500.0,0.00036717,8]
[394800394,1763965844999,-179.25001141,0.00036717,8]
[394800395,1763965845011,-500.0,0.00036717,8]
[394800396,1763965845020,-631.81798151,0.00036717,8]
[394800397,1763965845030,-500.0,0.00036717,8]
[394800398,1763965845040,-500.0,0.00036717,8]
[394800399,1763965845050,-500.0,0.00036717,8]
[394800400,1763965845059,-575.36619717,0.00036717,8]
[394800401,1763965845068,-500.0,0.00036717,8]
[394800402,1763965845078,-2560.55,0.00036717,8]
[394800403,1763965845087,-564.53733892,0.00036717,8]
[394800404,1763965845097,-503.79415608,0.00036717,8]
[394800405,1763965845107,-151.0,0.00036717,31]
[394800406,1763965845117,-500.0,0.00036717,8]
[394800407,1763965845127,-500.0,0.00036717,8]
[394800408,1763965845137,-520.3137448,0.00036717,8]
[394800409,1763965845146,-500.0,0.00036717,8]
[394800410,1763965845155,-548.7130038,0.00036717,8]
[394800411,1763965845165,-645.61964689,0.00036717,8]
[394800412,1763965845174,-151.0,0.00036717,31]
[394800413,1763965845184,-608.074817,0.00036717,8]
[394800414,1763965845193,-151.0,0.00036717,31]
[394800415,1763965845203,-517.35642827,0.00036717,8]
[394800416,1763965845213,-503.13416574,0.00036717,8]
[394800417,1763965845223,-151.0,0.00036717,31]
[394800418,1763965845232,-562.93244837,0.00036717,8]
[394800419,1763965845242,-500.0,0.00036717,8]
[394800420,1763965845256,-502.40793893,0.00036717,8]
[394800421,1763965845266,-151.0,0.00036717,31]
[394800422,1763965845276,-151.0,0.00036717,31]
[394800423,1763965845286,-151.0,0.00036717,31]
[394800424,1763965845295,-500.0,0.00036717,8]
[394800425,1763965845305,-151.0,0.00036717,31]
[394800426,1763965845315,-151.0,0.00036717,31]
[394800427,1763965845325,-151.0,0.00036717,31]
[394800428,1763965845334,-151.0,0.00036717,31]
[394800429,1763965845344,-151.0,0.00036717,31]
[394800430,1763965845354,-531.48192266,0.00036717,8]
[394800431,1763965845364,-185.492056,0.00036717,31]
[394800432,1763965845374,-500.0,0.00036717,8]
[394800433,1763965845383,-500.0,0.00036718,8]
[394800434,1763965845392,-502.31913605,0.00036718,8]
[394800435,1763965845401,-500.0,0.00036718,8]
[394800436,1763965845410,-503.02297782,0.00036718,8]
[394800437,1763965845420,-500.0,0.00036718,8]
[394800438,1763965845429,-499.19911174,0.00036718,8]
[394800439,1763965845439,-500.0,0.00036718,8]
[394800440,1763965845449,-504.95907445,0.00036718,8]
[394800441,1763965845458,-505.31713359,0.00036718,8]
[394800442,1763965845467,-500.0,0.00036718,8]
[394800443,1763965845477,-500.0,0.00036718,8]
[394800444,1763965845486,-410.78241672,0.00036718,8]
[394800445,1763965845495,-517.0629793,0.00036718,8]
[394800446,1763965845504,-571.18,0.00036718,8]
[394800447,1763965845514,-522.3503464,0.00036718,8]
[394800448,1763965845523,-405.13188223,0.00036718,8]
[394800449,1763965845533,-449.86820134,0.00036718,8]
[394800450,1763965845542,-502.39909855,0.00036718,8]
[394800451,1763965845552,-500.0,0.00036718,8]
[394800452,1763965845561,-500.0,0.00036718,8]
[394800453,1763965845570,-500.0,0.00036718,8]
[394800454,1763965845580,-193.80052388,0.00036718,8]
[394800456,1763965845589,-500.0,0.00036718,8]
[394800457,1763965845598,-500.0,0.00036718,8]
[394800458,1763965845609,-500.0,0.00036718,8]
[394800459,1763965845618,-505.79529391,0.00036718,8]
[394800460,1763965845628,-500.0,0.00036718,8]
[394800461,1763965845641,-500.0,0.00036718,8]
[394800462,1763965845650,-500.0,0.00036718,8]
[394800463,1763965845660,-500.0,0.00036718,8]
[394800464,1763965845669,-500.0,0.00036718,8]
[394800465,1763965845679,-510.86254932,0.00036718,8]
[394800466,1763965845688,-519.83240011,0.00036718,8]
[394800467,1763965845698,-500.0,0.00036718,8]
[394800468,1763965845707,-504.59398426,0.00036718,8]
[394800469,1763965845717,-500.0,0.00036718,8]
[394800470,1763965845726,-502.82294112,0.00036718,8]
[394800471,1763965845736,-381.61084656,0.00036718,8]
[394800472,1763965845745,-507.11288139,0.00036718,8]
[394800473,1763965845755,-530.01366376,0.00036718,8]
[394800475,1763965845765,-643.01232674,0.00036718,8]
[394800476,1763965845776,-510.80057499,0.00036718,8]
[394800477,1763965845785,-500.0,0.00036718,8]
[394800478,1763965845795,-551.1591355,0.00036718,8]
[394800479,1763965845804,-500.0,0.00036718,8]
[394800480,1763965845814,-591.07613381,0.00036718,8]
[394800481,1763965845823,-500.0,0.00036718,8]
[394800482,1763965845834,-475.33168135,0.00036718,8]
[394800483,1763965845843,-590.13237317,0.00036718,8]
[394800484,1763965845853,-244.51626757,0.00036718,8]
[394800485,1763965845864,-543.79944399,0.00036718,8]
[394800486,1763965845874,-550.21681991,0.00036718,8]
[394800487,1763965845883,-506.35243885,0.00036718,8]
[394800488,1763965845893,-500.0,0.00036718,8]
[394800489,1763965845902,-253.13841791,0.00036718,8]
[394800490,1763965845912,-284.31691849,0.00036718,8]
[394800491,1763965845922,-500.0,0.00036718,8]
[394800492,1763965845931,-500.0,0.00036718,8]
[394800493,1763965845941,-510.34965146,0.00036718,8]
[394800494,1763965845952,-500.0,0.00036718,8]
[394800495,1763965845961,-336.63909612,0.00036718,8]
[394800496,1763965845976,-506.36696655,0.00036718,8]
[394800497,1763965845986,-506.31625184,0.00036718,8]
[394800498,1763965845995,-500.0,0.00036718,8]
[394800499,1763965846005,-803.08,0.00036718,8]
[394800500,1763965846016,-505.70650122,0.00036718,8]
[394800501,1763965846030,-500.0,0.00036718,8]
[394800502,1763965846040,-511.03643107,0.00036718,8]
[394800503,1763965846051,-503.66479021,0.00036718,8]
[394800504,1763965846061,-404.46760292,0.00036718,8]
[394800505,1763965846070,-151.0,0.00036718,31]